[Event "*** Titled Tuesday Blitz"]
[Site "Chess.com"]
[Date "2020.04.14"]
[Round "3"]
[White "ntmh281"]
[Black "avantage_ru"]
[Result "0-1"]
[WhiteElo "2302"]
[BlackElo "2557"]
[TimeControl "180+1"]
[EndTime "10:27:15 PDT"]
[Termination "avantage_ru won on time"]

1. d4 {[%clk 0:03:00.9]} 1... Nf6 {[%clk 0:02:59.8]} 2. Nf3 {[%clk 0:02:59.9]}
2... g6 {[%clk 0:02:59.7]} 3. g3 {[%clk 0:02:58.6]} 3... Bg7 {[%clk 0:02:59.5]}
4. Bg2 {[%clk 0:02:59.5]} 4... O-O {[%clk 0:02:59.1]} 5. O-O {[%clk 0:02:59.6]}
5... c5 {[%clk 0:02:58.1]} 6. Nc3 {[%clk 0:02:40.9]} 6... cxd4 {[%clk 0:02:52]}
7. Nxd4 {[%clk 0:02:40.5]} 7... Nc6 {[%clk 0:02:52.5]} 8. e4 {[%clk 0:02:14.1]}
8... Nxe4 {[%clk 0:02:48.2]} 9. Nxc6 {[%clk 0:02:05.4]} 9... Nxc3 {[%clk
0:02:48.2]} 10. Nxd8 {[%clk 0:02:03.8]} 10... Nxd1 {[%clk 0:02:47.4]} 11. Nxb7
{[%clk 0:01:54.6]} 11... Nxb2 {[%clk 0:02:47.2]} 12. Rb1 {[%clk 0:01:35.4]}
12... Na4 {[%clk 0:02:09.5]} 13. Nc5 {[%clk 0:01:27]} 13... Nxc5 {[%clk
0:02:08.6]} 14. Bxa8 {[%clk 0:01:26.3]} 14... Ba6 {[%clk 0:02:08.6]} 15. Bf3
{[%clk 0:01:13.8]} 15... Bxf1 {[%clk 0:02:07.5]} 16. Kxf1 {[%clk 0:01:14.7]}
16... Rc8 {[%clk 0:01:52.2]} 17. Ba3 {[%clk 0:01:06.7]} 17... Bf6 {[%clk
0:01:44.2]} 18. c4 {[%clk 0:00:55.8]} 18... d6 {[%clk 0:01:42.7]} 19. Bg4 {[%clk
0:00:34.8]} 19... Rc6 {[%clk 0:01:38.4]} 20. Ke2 {[%clk 0:00:32.5]} 20... Ra6
{[%clk 0:01:34.1]} 21. Bc1 {[%clk 0:00:12.6]} 21... Rxa2+ {[%clk 0:01:32.9]} 22.
Kf1 {[%clk 0:00:12.9]} 22... h5 {[%clk 0:01:30.8]} 23. Bf3 {[%clk 0:00:08.7]}
23... Bd4 {[%clk 0:01:28.7]} 24. Be3 {[%clk 0:00:06.3]} 24... Bxe3 {[%clk
0:01:27.7]} 25. fxe3 {[%clk 0:00:07.2]} 25... f5 {[%clk 0:01:22.6]} 26. Bd5+
{[%clk 0:00:07]} 26... Kg7 {[%clk 0:01:22.1]} 27. Rb8 {[%clk 0:00:06.2]} 27...
a5 {[%clk 0:01:19.7]} 28. Rg8+ {[%clk 0:00:03.6]} 28... Kf6 {[%clk 0:01:19.6]}
29. h4 {[%clk 0:00:02.5]} 29... a4 {[%clk 0:01:17.4]} 30. Ra8 {[%clk 0:00:02]}
30... a3 {[%clk 0:01:09.4]} 0-1

[Event "*** Titled Tuesday Blitz"]
[Site "Chess.com"]
[Date "2020.04.14"]
[Round "3"]
[White "Willychess95"]
[Black "Sychev_Klementy"]
[Result "0-1"]
[WhiteElo "2643"]
[BlackElo "2885"]
[TimeControl "180+1"]
[EndTime "10:27:18 PDT"]
[Termination "Sychev_Klementy won by resignation"]

1. e4 {[%clk 0:03:00]} 1... e5 {[%clk 0:03:00]} 2. Nf3 {[%clk 0:03:00]} 2... Nc6
{[%clk 0:03:00.5]} 3. Bc4 {[%clk 0:03:00.5]} 3... Nf6 {[%clk 0:03:00.2]} 4. Ng5
{[%clk 0:02:59.8]} 4... d5 {[%clk 0:02:59.7]} 5. exd5 {[%clk 0:03:00]} 5... Na5
{[%clk 0:02:59.8]} 6. Bb5+ {[%clk 0:03:00.2]} 6... c6 {[%clk 0:03:00.5]} 7. dxc6
{[%clk 0:03:01.1]} 7... bxc6 {[%clk 0:03:01]} 8. Qf3 {[%clk 0:03:01.2]} 8...
cxb5 {[%clk 0:03:00.8]} 9. Qxa8 {[%clk 0:03:01.4]} 9... Be7 {[%clk 0:03:01.2]}
10. Qf3 {[%clk 0:02:37.8]} 10... O-O {[%clk 0:03:00.7]} 11. Nc3 {[%clk
0:02:35.3]} 11... Bb7 {[%clk 0:02:31.2]} 12. Qe2 {[%clk 0:02:30.7]} 12... Nc6
{[%clk 0:02:15.6]} 13. Qxb5 {[%clk 0:01:51.4]} 13... Ba8 {[%clk 0:02:11.7]} 14.
O-O {[%clk 0:01:38]} 14... Nd4 {[%clk 0:02:11.5]} 15. Qd3 {[%clk 0:01:38.3]}
15... Qc8 {[%clk 0:02:07.1]} 16. Nce4 {[%clk 0:01:24.3]} 16... Nxe4 {[%clk
0:01:37.3]} 17. Nxe4 {[%clk 0:01:25.2]} 17... Nxc2 {[%clk 0:01:31.6]} 18. Rb1
{[%clk 0:01:05.6]} 18... Rd8 {[%clk 0:01:31.3]} 19. Qe2 {[%clk 0:00:31.3]} 19...
Nd4 {[%clk 0:01:31.1]} 20. Qd3 {[%clk 0:00:19.5]} 20... f5 {[%clk 0:01:21.7]}
21. f3 {[%clk 0:00:18.2]} 21... fxe4 {[%clk 0:01:15.8]} 22. fxe4 {[%clk
0:00:19.1]} 22... Qg4 {[%clk 0:01:15.4]} 23. Re1 {[%clk 0:00:15.8]} 23... Rf8
{[%clk 0:01:08]} 24. Kh1 {[%clk 0:00:14.8]} 24... Rf2 {[%clk 0:01:07]} 25. Qc4+
{[%clk 0:00:13.4]} 25... Kh8 {[%clk 0:01:01.9]} 26. Rg1 {[%clk 0:00:10]} 26...
Bxe4 {[%clk 0:00:58.6]} 27. Qc8+ {[%clk 0:00:10.2]} 27... Qxc8 {[%clk
0:00:58.1]} 0-1

[Event "*** Titled Tuesday Blitz"]
[Site "Chess.com"]
[Date "2020.04.14"]
[Round "3"]
[White "Teidi96"]
[Black "yudinetz"]
[Result "0-1"]
[WhiteElo "2198"]
[BlackElo "2424"]
[TimeControl "180+1"]
[EndTime "10:27:19 PDT"]
[Termination "yudinetz won on time"]

1. e4 {[%clk 0:03:00.9]} 1... Nf6 {[%clk 0:02:58.8]} 2. e5 {[%clk 0:03:00.6]}
2... Nd5 {[%clk 0:02:58.8]} 3. d4 {[%clk 0:03:01.3]} 3... d6 {[%clk 0:02:59.2]}
4. Nf3 {[%clk 0:03:02.1]} 4... Nb6 {[%clk 0:02:59.8]} 5. exd6 {[%clk 0:03:00.6]}
5... cxd6 {[%clk 0:03:00.7]} 6. Bd3 {[%clk 0:02:56.6]} 6... g6 {[%clk
0:03:01.1]} 7. O-O {[%clk 0:02:55.6]} 7... Bg7 {[%clk 0:03:01.6]} 8. c3 {[%clk
0:02:55.5]} 8... O-O {[%clk 0:03:01.3]} 9. Re1 {[%clk 0:02:54.2]} 9... Nc6
{[%clk 0:03:01.9]} 10. Bg5 {[%clk 0:02:49.3]} 10... Qc7 {[%clk 0:03:01.6]} 11.
Nbd2 {[%clk 0:02:44.7]} 11... f6 {[%clk 0:02:44.9]} 12. Be3 {[%clk 0:02:42.3]}
12... e5 {[%clk 0:02:36.1]} 13. dxe5 {[%clk 0:02:28.5]} 13... dxe5 {[%clk
0:02:35.8]} 14. Nc4 {[%clk 0:02:16.7]} 14... Nd5 {[%clk 0:02:16.3]} 15. Bc5
{[%clk 0:02:03]} 15... Rd8 {[%clk 0:02:13.5]} 16. Qb3 {[%clk 0:01:37.7]} 16...
Be6 {[%clk 0:02:13.6]} 17. Ne3 {[%clk 0:01:06.6]} 17... Na5 {[%clk 0:01:57.4]}
18. Nxd5 {[%clk 0:01:03.7]} 18... Bxd5 {[%clk 0:01:53.5]} 19. Qb5 {[%clk
0:00:42.3]} 19... b6 {[%clk 0:01:38]} 20. Be3 {[%clk 0:00:24.3]} 20... e4 {[%clk
0:01:18]} 21. Bc2 {[%clk 0:00:04.4]} 21... exf3 {[%clk 0:01:15.5]} 22. g3 {[%clk
0:00:04.6]} 22... Bc4 {[%clk 0:00:59]} 23. Qb4 {[%clk 0:00:01.4]} 23... Bf8
{[%clk 0:00:54.6]} 24. Qa4 {[%clk 0:00:01.6]} 24... b5 {[%clk 0:00:48.5]} 0-1

[Event "*** Titled Tuesday Blitz"]
[Site "Chess.com"]
[Date "2020.04.14"]
[Round "3"]
[White "gmkomarov"]
[Black "gmelviro"]
[Result "1-0"]
[WhiteElo "2397"]
[BlackElo "2184"]
[TimeControl "180+1"]
[EndTime "10:27:21 PDT"]
[Termination "gmkomarov won by resignation"]

1. d4 {[%clk 0:03:00.9]} 1... f5 {[%clk 0:02:58.8]} 2. Nc3 {[%clk 0:02:59.3]}
2... Nf6 {[%clk 0:02:57.4]} 3. Bg5 {[%clk 0:02:58.9]} 3... e6 {[%clk 0:02:55.4]}
4. e4 {[%clk 0:02:57.7]} 4... fxe4 {[%clk 0:02:55]} 5. Nxe4 {[%clk 0:02:57.7]}
5... Be7 {[%clk 0:02:55.6]} 6. Bxf6 {[%clk 0:02:53]} 6... Bxf6 {[%clk
0:02:54.2]} 7. Qh5+ {[%clk 0:02:51.6]} 7... g6 {[%clk 0:02:53.8]} 8. Qh6 {[%clk
0:02:51.7]} 8... Qe7 {[%clk 0:02:48.7]} 9. Nxf6+ {[%clk 0:02:44.8]} 9... Qxf6
{[%clk 0:02:48.2]} 10. Nf3 {[%clk 0:02:44.6]} 10... Nc6 {[%clk 0:02:43.9]} 11.
O-O-O {[%clk 0:02:44.3]} 11... b6 {[%clk 0:02:34.6]} 12. d5 {[%clk 0:02:25]}
12... exd5 {[%clk 0:02:30.4]} 13. Re1+ {[%clk 0:02:17.4]} 13... Ne7 {[%clk
0:02:23.3]} 14. Bd3 {[%clk 0:02:16.2]} 14... Bb7 {[%clk 0:02:16.9]} 15. Qe3
{[%clk 0:02:14.7]} 15... Rf8 {[%clk 0:02:13.5]} 16. Kb1 {[%clk 0:02:12.1]} 16...
Rf7 {[%clk 0:01:56.2]} 17. Ne5 {[%clk 0:02:06.6]} 17... Rg7 {[%clk 0:01:55.3]}
18. Ng4 {[%clk 0:02:02.7]} 18... Qf8 {[%clk 0:01:54.3]} 19. Qd4 {[%clk
0:01:29.1]} 19... O-O-O {[%clk 0:01:47]} 20. f4 {[%clk 0:01:29]} 20... Rf7
{[%clk 0:01:37.9]} 21. Rhf1 {[%clk 0:01:26.2]} 21... Nf5 {[%clk 0:01:25.8]} 22.
Bxf5 {[%clk 0:01:24.4]} 22... Rxf5 {[%clk 0:01:24.7]} 23. g3 {[%clk 0:01:23.6]}
23... c5 {[%clk 0:01:21.1]} 24. Qa4 {[%clk 0:01:22.9]} 24... Kb8 {[%clk
0:01:20.5]} 25. Ne5 {[%clk 0:01:22.2]} 25... Qg7 {[%clk 0:00:57.7]} 26. Rf3
{[%clk 0:01:21.5]} 26... d4 {[%clk 0:00:29.2]} 27. Ra3 {[%clk 0:01:19.9]} 27...
a6 {[%clk 0:00:26.7]} 28. b4 {[%clk 0:01:19.7]} 28... cxb4 {[%clk 0:00:20.2]}
29. Qxb4 {[%clk 0:01:18.3]} 29... b5 {[%clk 0:00:18.5]} 30. Qxd4 {[%clk
0:01:17.3]} 30... d6 {[%clk 0:00:17]} 31. Nc6+ {[%clk 0:01:15.7]} 1-0

[Event "*** Titled Tuesday Blitz"]
[Site "Chess.com"]
[Date "2020.04.14"]
[Round "3"]
[White "tandaleo"]
[Black "lrestevez"]
[Result "1-0"]
[WhiteElo "2342"]
[BlackElo "2138"]
[TimeControl "180+1"]
[EndTime "10:27:21 PDT"]
[Termination "tandaleo won by resignation"]

1. d4 {[%clk 0:03:00.9]} 1... Nf6 {[%clk 0:02:59.9]} 2. c4 {[%clk 0:03:00.7]}
2... e5 {[%clk 0:03:00]} 3. dxe5 {[%clk 0:02:57.9]} 3... Ng4 {[%clk 0:02:59.8]}
4. e3 {[%clk 0:02:58.1]} 4... Nxe5 {[%clk 0:02:58.8]} 5. Nh3 {[%clk 0:02:59]}
5... Nbc6 {[%clk 0:02:56.1]} 6. Nf4 {[%clk 0:02:57]} 6... Bb4+ {[%clk
0:02:49.4]} 7. Bd2 {[%clk 0:02:56.7]} 7... Bxd2+ {[%clk 0:02:45.6]} 8. Qxd2
{[%clk 0:02:57.6]} 8... O-O {[%clk 0:02:46]} 9. Be2 {[%clk 0:02:57.4]} 9... Ne7
{[%clk 0:02:45.5]} 10. O-O {[%clk 0:02:55.5]} 10... b6 {[%clk 0:02:45.5]} 11.
Nc3 {[%clk 0:02:54]} 11... Bb7 {[%clk 0:02:45.5]} 12. Ncd5 {[%clk 0:02:54]}
12... Nxd5 {[%clk 0:02:44.9]} 13. cxd5 {[%clk 0:02:50]} 13... d6 {[%clk
0:02:42.7]} 14. Rac1 {[%clk 0:02:48.1]} 14... a5 {[%clk 0:02:41.7]} 15. e4
{[%clk 0:02:42.7]} 15... Nd7 {[%clk 0:02:41.4]} 16. Nd3 {[%clk 0:02:41.6]} 16...
Ba6 {[%clk 0:02:38.5]} 17. f4 {[%clk 0:02:23.6]} 17... Bxd3 {[%clk 0:02:37.3]}
18. Bxd3 {[%clk 0:02:24.5]} 18... Nc5 {[%clk 0:02:37.9]} 19. Bb1 {[%clk
0:02:24.5]} 19... Qf6 {[%clk 0:02:32.7]} 20. Rce1 {[%clk 0:02:22.9]} 20... Rfe8
{[%clk 0:02:18.6]} 21. e5 {[%clk 0:02:23.2]} 21... Qh6 {[%clk 0:02:02]} 22. Qf2
{[%clk 0:02:16.1]} 22... Rad8 {[%clk 0:01:36.1]} 23. a3 {[%clk 0:01:51.9]} 23...
dxe5 {[%clk 0:01:28.5]} 24. fxe5 {[%clk 0:01:51.3]} 24... Rf8 {[%clk 0:01:24.5]}
25. Ba2 {[%clk 0:01:47]} 25... Nd3 {[%clk 0:01:20.9]} 26. Qe2 {[%clk 0:01:34.9]}
26... Nxe1 {[%clk 0:01:20.6]} 27. Rxe1 {[%clk 0:01:34.6]} 27... Kh8 {[%clk
0:01:19.1]} 28. e6 {[%clk 0:01:32.2]} 28... fxe6 {[%clk 0:01:18.6]} 29. dxe6
{[%clk 0:01:32.4]} 29... Rde8 {[%clk 0:01:16.8]} 30. e7 {[%clk 0:01:30.3]} 30...
Rf6 {[%clk 0:01:10.6]} 31. h3 {[%clk 0:00:57]} 31... Rd6 {[%clk 0:01:05.4]} 32.
Bf7 {[%clk 0:00:55.2]} 32... Rd2 {[%clk 0:00:36.3]} 33. Bxe8 {[%clk 0:00:55]}
33... Rxe2 {[%clk 0:00:34.4]} 34. Rxe2 {[%clk 0:00:55.1]} 34... Qc1+ {[%clk
0:00:30.2]} 35. Kh2 {[%clk 0:00:55.1]} 35... Qf4+ {[%clk 0:00:29.6]} 36. g3
{[%clk 0:00:55.2]} 36... Qf3 {[%clk 0:00:21.1]} 37. Bh5 {[%clk 0:00:54.9]} 1-0

[Event "*** Titled Tuesday Blitz"]
[Site "Chess.com"]
[Date "2020.04.14"]
[Round "3"]
[White "TigrVShlyape"]
[Black "iLuusions"]
[Result "1-0"]
[WhiteElo "2857"]
[BlackElo "2570"]
[TimeControl "180+1"]
[EndTime "10:27:22 PDT"]
[Termination "TigrVShlyape won by resignation"]

1. d4 {[%clk 0:03:00.9]} 1... Nf6 {[%clk 0:02:57.7]} 2. Nf3 {[%clk 0:03:00.8]}
2... e6 {[%clk 0:02:57.2]} 3. Bf4 {[%clk 0:03:00.1]} 3... d5 {[%clk 0:02:56.8]}
4. e3 {[%clk 0:02:59.4]} 4... Bd6 {[%clk 0:02:57]} 5. Bg3 {[%clk 0:02:58.1]}
5... O-O {[%clk 0:02:55.6]} 6. c4 {[%clk 0:02:58]} 6... b6 {[%clk 0:02:40.9]} 7.
cxd5 {[%clk 0:02:55.6]} 7... exd5 {[%clk 0:02:38.8]} 8. Nc3 {[%clk 0:02:54.9]}
8... a6 {[%clk 0:02:38.1]} 9. Bd3 {[%clk 0:02:52.2]} 9... Bb7 {[%clk 0:02:35.8]}
10. Ne5 {[%clk 0:02:51.1]} 10... Nbd7 {[%clk 0:02:31.5]} 11. O-O {[%clk
0:02:47.7]} 11... Qe7 {[%clk 0:02:29.5]} 12. Nxd7 {[%clk 0:02:47.6]} 12... Qxd7
{[%clk 0:02:28.6]} 13. Bxd6 {[%clk 0:02:45.7]} 13... Qxd6 {[%clk 0:02:28.7]} 14.
Rc1 {[%clk 0:02:41.9]} 14... Rfe8 {[%clk 0:02:25.4]} 15. Qc2 {[%clk 0:02:40.6]}
15... h5 {[%clk 0:02:12.4]} 16. h3 {[%clk 0:02:36.7]} 16... Re7 {[%clk
0:02:11.3]} 17. Ne2 {[%clk 0:02:29]} 17... Ne4 {[%clk 0:02:04.3]} 18. a3 {[%clk
0:02:20.8]} 18... h4 {[%clk 0:01:51.4]} 19. b4 {[%clk 0:02:18.8]} 19... g6
{[%clk 0:01:40.1]} 20. Bxe4 {[%clk 0:02:10.3]} 20... dxe4 {[%clk 0:01:38.8]} 21.
Rfd1 {[%clk 0:01:52.4]} 21... g5 {[%clk 0:01:16.1]} 22. d5 {[%clk 0:01:24.9]}
22... f5 {[%clk 0:01:07.9]} 23. Nd4 {[%clk 0:01:22.3]} 23... Qe5 {[%clk
0:00:57.3]} 24. Nc6 {[%clk 0:01:19.2]} 24... Bxc6 {[%clk 0:00:56.4]} 25. Qxc6
{[%clk 0:01:19.3]} 25... Rf8 {[%clk 0:00:56.5]} 26. d6 {[%clk 0:01:16.4]} 26...
cxd6 {[%clk 0:00:56.9]} 27. Rxd6 {[%clk 0:01:14.9]} 27... f4 {[%clk 0:00:53]}
28. Rg6+ {[%clk 0:01:03.5]} 28... Kh8 {[%clk 0:00:47.7]} 29. Qxb6 {[%clk
0:00:59.9]} 29... Ref7 {[%clk 0:00:38.9]} 30. Rh6+ {[%clk 0:00:59.6]} 30... Kg8
{[%clk 0:00:38.7]} 31. Qg6+ {[%clk 0:00:58.6]} 31... Rg7 {[%clk 0:00:33.5]} 32.
Qh5 {[%clk 0:00:58.2]} 32... Rgf7 {[%clk 0:00:23.6]} 33. Rc5 {[%clk 0:00:53.2]}
33... Qa1+ {[%clk 0:00:22.7]} 34. Kh2 {[%clk 0:00:52.9]} 1-0

[Event "*** Titled Tuesday Blitz"]
[Site "Chess.com"]
[Date "2020.04.14"]
[Round "3"]
[White "dcann0n88"]
[Black "KingChess345"]
[Result "1-0"]
[WhiteElo "2303"]
[BlackElo "2045"]
[TimeControl "180+1"]
[EndTime "10:27:22 PDT"]
[Termination "dcann0n88 won by resignation"]

1. e4 {[%clk 0:03:00.9]} 1... c5 {[%clk 0:02:59.4]} 2. Nf3 {[%clk 0:03:00.8]}
2... Nc6 {[%clk 0:02:59.7]} 3. d4 {[%clk 0:03:01.4]} 3... cxd4 {[%clk
0:03:00.6]} 4. Nxd4 {[%clk 0:03:02.3]} 4... Nf6 {[%clk 0:03:00.7]} 5. Nc3 {[%clk
0:03:02.9]} 5... e5 {[%clk 0:03:01.1]} 6. Ndb5 {[%clk 0:03:03.2]} 6... d6 {[%clk
0:03:01.5]} 7. Bg5 {[%clk 0:03:03.8]} 7... a6 {[%clk 0:03:01.6]} 8. Na3 {[%clk
0:03:04.4]} 8... b5 {[%clk 0:03:02]} 9. Nd5 {[%clk 0:03:04.9]} 9... Be7 {[%clk
0:03:02.3]} 10. Bxf6 {[%clk 0:03:05.6]} 10... Bxf6 {[%clk 0:03:02.7]} 11. c3
{[%clk 0:03:06.5]} 11... Bg5 {[%clk 0:03:01.9]} 12. Nc2 {[%clk 0:03:01.2]} 12...
O-O {[%clk 0:03:01.9]} 13. a4 {[%clk 0:03:00.7]} 13... bxa4 {[%clk 0:03:00.5]}
14. Rxa4 {[%clk 0:02:59.7]} 14... a5 {[%clk 0:03:01.4]} 15. Bc4 {[%clk
0:02:59.6]} 15... Rb8 {[%clk 0:02:58.5]} 16. b3 {[%clk 0:02:57.1]} 16... Be6
{[%clk 0:02:58.7]} 17. O-O {[%clk 0:02:56.7]} 17... g6 {[%clk 0:02:59.1]} 18.
Nce3 {[%clk 0:02:53.4]} 18... Ne7 {[%clk 0:02:56.8]} 19. Nxe7+ {[%clk
0:02:43.8]} 19... Qxe7 {[%clk 0:02:56.3]} 20. Bd5 {[%clk 0:02:44.5]} 20... Bxe3
{[%clk 0:02:38.6]} 21. fxe3 {[%clk 0:02:44.4]} 21... Rfc8 {[%clk 0:02:36.9]} 22.
c4 {[%clk 0:02:30]} 22... Bxd5 {[%clk 0:02:25.2]} 23. exd5 {[%clk 0:02:30.9]}
23... Qa7 {[%clk 0:02:21.4]} 24. Qd3 {[%clk 0:02:29]} 24... f5 {[%clk
0:01:50.1]} 25. Rfa1 {[%clk 0:02:23.1]} 25... Rc5 {[%clk 0:01:44.9]} 26. b4
{[%clk 0:02:12.8]} 26... e4 {[%clk 0:01:33.7]} 27. Qd4 {[%clk 0:02:10.4]} 27...
Rc7 {[%clk 0:01:27.3]} 28. b5 {[%clk 0:01:54.8]} 28... Qxd4 {[%clk 0:00:28.6]}
29. exd4 {[%clk 0:01:54.1]} 29... Rbc8 {[%clk 0:00:29.2]} 30. Rc1 {[%clk
0:01:51.7]} 30... Kf7 {[%clk 0:00:28.7]} 31. Kf2 {[%clk 0:01:44.9]} 31... g5
{[%clk 0:00:20.3]} 32. Ke3 {[%clk 0:01:44.3]} 32... Kf6 {[%clk 0:00:19.1]} 33.
b6 {[%clk 0:01:15.4]} 33... Rb7 {[%clk 0:00:18.5]} 34. Rb1 {[%clk 0:01:12.1]}
34... Ke7 {[%clk 0:00:14.9]} 35. Rb5 {[%clk 0:01:07.5]} 35... Kd7 {[%clk
0:00:13.4]} 36. c5 {[%clk 0:01:07.6]} 36... dxc5 {[%clk 0:00:10.3]} 37. dxc5
{[%clk 0:01:08.5]} 37... Rbb8 {[%clk 0:00:09.2]} 38. Raxa5 {[%clk 0:01:06.6]}
1-0

[Event "*** Titled Tuesday Blitz"]
[Site "Chess.com"]
[Date "2020.04.14"]
[Round "3"]
[White "Bambi2006"]
[Black "Morshynska"]
[Result "1-0"]
[WhiteElo "2423"]
[BlackElo "2076"]
[TimeControl "180+1"]
[EndTime "10:27:24 PDT"]
[Termination "Bambi2006 won by resignation"]

1. d4 {[%clk 0:03:00.9]} 1... Nf6 {[%clk 0:02:57.8]} 2. c4 {[%clk 0:03:00.7]}
2... e6 {[%clk 0:02:58]} 3. g3 {[%clk 0:02:59.6]} 3... Bb4+ {[%clk 0:02:56]} 4.
Nd2 {[%clk 0:02:58.3]} 4... c5 {[%clk 0:02:55.1]} 5. Nf3 {[%clk 0:02:55.6]} 5...
cxd4 {[%clk 0:02:53.7]} 6. Nxd4 {[%clk 0:02:55.3]} 6... Nc6 {[%clk 0:02:53.1]}
7. Nc2 {[%clk 0:02:53.9]} 7... Be7 {[%clk 0:02:40]} 8. Bg2 {[%clk 0:02:51.1]}
8... d5 {[%clk 0:02:38.3]} 9. O-O {[%clk 0:02:49]} 9... d4 {[%clk 0:02:31.8]}
10. Nb3 {[%clk 0:02:44.7]} 10... e5 {[%clk 0:02:29.7]} 11. f4 {[%clk 0:02:44.9]}
11... exf4 {[%clk 0:02:13.2]} 12. Bxf4 {[%clk 0:02:35.3]} 12... O-O {[%clk
0:02:03.9]} 13. Ncxd4 {[%clk 0:02:30.1]} 13... Qb6 {[%clk 0:01:54.3]} 14. Kh1
{[%clk 0:02:22.8]} 14... Rd8 {[%clk 0:01:48]} 15. Nxc6 {[%clk 0:02:15]} 15...
bxc6 {[%clk 0:01:16.9]} 16. Qc2 {[%clk 0:02:14.4]} 16... Be6 {[%clk 0:01:08.5]}
17. Rac1 {[%clk 0:02:08.6]} 17... a5 {[%clk 0:01:07.5]} 18. e3 {[%clk
0:02:05.1]} 18... c5 {[%clk 0:00:49.6]} 19. Bxa8 {[%clk 0:02:01]} 19... Rxa8
{[%clk 0:00:50.5]} 20. Nd2 {[%clk 0:01:53.8]} 20... Bc8 {[%clk 0:00:48.7]} 21.
e4 {[%clk 0:01:50.6]} 21... Bb7 {[%clk 0:00:48.4]} 22. Rce1 {[%clk 0:01:49.3]}
22... Re8 {[%clk 0:00:46.8]} 23. Kg1 {[%clk 0:01:43.8]} 23... Bf8 {[%clk
0:00:39]} 24. Qb3 {[%clk 0:01:39.5]} 24... Qc6 {[%clk 0:00:33.3]} 25. Qb5 {[%clk
0:01:36]} 25... Qc8 {[%clk 0:00:33.2]} 26. Qxa5 {[%clk 0:01:32.2]} 26... Qh3
{[%clk 0:00:29.1]} 27. Qb5 {[%clk 0:01:26.1]} 27... Ng4 {[%clk 0:00:27.8]} 28.
Re2 {[%clk 0:01:22]} 28... Rxe4 {[%clk 0:00:12.6]} 29. Nxe4 {[%clk 0:01:17.5]}
29... Bxe4 {[%clk 0:00:13.5]} 30. Qe8 {[%clk 0:01:13.3]} 30... Bd3 {[%clk
0:00:06.7]} 31. Qxf8+ {[%clk 0:00:59.1]} 31... Kxf8 {[%clk 0:00:04.6]} 32. Bd6+
{[%clk 0:00:59.5]} 1-0

[Event "*** Titled Tuesday Blitz"]
[Site "Chess.com"]
[Date "2020.04.14"]
[Round "3"]
[White "VincentKeymer"]
[Black "Kingsman132"]
[Result "0-1"]
[WhiteElo "2643"]
[BlackElo "2426"]
[TimeControl "180+1"]
[EndTime "10:27:25 PDT"]
[Termination "Kingsman132 won by resignation"]

1. Nf3 {[%clk 0:03:00.9]} 1... Nf6 {[%clk 0:02:54.1]} 2. c4 {[%clk 0:02:59]}
2... c5 {[%clk 0:02:51.7]} 3. Nc3 {[%clk 0:02:59.1]} 3... Nc6 {[%clk 0:02:49.8]}
4. g3 {[%clk 0:02:57.6]} 4... g6 {[%clk 0:02:49.3]} 5. Bg2 {[%clk 0:02:57.5]}
5... Bg7 {[%clk 0:02:48.9]} 6. O-O {[%clk 0:02:57.6]} 6... O-O {[%clk
0:02:45.2]} 7. d4 {[%clk 0:02:57.5]} 7... d5 {[%clk 0:02:42.2]} 8. dxc5 {[%clk
0:02:56.7]} 8... dxc4 {[%clk 0:02:40.3]} 9. Qa4 {[%clk 0:02:57.2]} 9... Qa5
{[%clk 0:02:37.4]} 10. Qxc4 {[%clk 0:02:57.1]} 10... Be6 {[%clk 0:02:35]} 11.
Qh4 {[%clk 0:02:57.2]} 11... Qxc5 {[%clk 0:02:32.5]} 12. Bh6 {[%clk 0:02:54.9]}
12... Rfd8 {[%clk 0:02:28]} 13. Bxg7 {[%clk 0:02:51.9]} 13... Kxg7 {[%clk
0:02:26.4]} 14. Ng5 {[%clk 0:02:39.4]} 14... Bf5 {[%clk 0:02:26.4]} 15. g4
{[%clk 0:02:06.3]} 15... Rd4 {[%clk 0:02:16.5]} 16. h3 {[%clk 0:01:56.1]} 16...
h5 {[%clk 0:02:17]} 17. Nf3 {[%clk 0:01:26.7]} 17... Rb4 {[%clk 0:02:06]} 18. a3
{[%clk 0:01:15.5]} 18... Rf4 {[%clk 0:01:59.8]} 19. Qg3 {[%clk 0:01:11.3]} 19...
hxg4 {[%clk 0:01:56]} 20. Qxf4 {[%clk 0:01:08.2]} 20... gxf3 {[%clk 0:01:56.6]}
21. Qxf3 {[%clk 0:01:06.1]} 21... Rh8 {[%clk 0:01:57.1]} 22. Rfd1 {[%clk
0:00:58.5]} 22... e5 {[%clk 0:01:50.7]} 23. Rac1 {[%clk 0:00:55.6]} 23... Qb6
{[%clk 0:01:45.4]} 24. e4 {[%clk 0:00:37.6]} 24... Be6 {[%clk 0:01:42.3]} 25. b4
{[%clk 0:00:36.6]} 25... Nd4 {[%clk 0:01:39.6]} 26. Qe3 {[%clk 0:00:35.4]} 26...
Nh5 {[%clk 0:01:31.6]} 27. Na4 {[%clk 0:00:19.9]} 27... Qd8 {[%clk 0:01:28.8]}
28. Rc5 {[%clk 0:00:18.3]} 28... Nf4 {[%clk 0:01:25.6]} 29. Nc3 {[%clk
0:00:18.1]} 29... Qg5 {[%clk 0:01:22.6]} 30. Qg3 {[%clk 0:00:10.6]} 30... Nde2+
{[%clk 0:01:11]} 31. Nxe2 {[%clk 0:00:10.4]} 31... Nxe2+ {[%clk 0:01:10.9]} 32.
Kh2 {[%clk 0:00:11]} 32... Nxg3 {[%clk 0:01:07.9]} 33. fxg3 {[%clk 0:00:11.9]}
33... Bxh3 {[%clk 0:01:03.7]} 34. Bxh3 {[%clk 0:00:11.4]} 34... Rxh3+ {[%clk
0:01:04.6]} 35. Kxh3 {[%clk 0:00:11.5]} 35... Qh5+ {[%clk 0:01:05.3]} 0-1